bitfinex-derivatives/quotes_BTCF0:USTF0_20241117
["timestamp","ask_amount","ask_price","bid_price","bid_amount"]
[1731839836113,0.00010922,91217.0,91216.0,1.57071712]
[1731839836407,0.00010922,91217.0,91216.0,1.59830512]
[1731839836601,0.05492022,91217.0,91216.0,0.0983057]
[1731839837109,0.05492022,91217.0,91216.0,0.29543125]
[1731839837411,0.05492022,91217.0,91216.0,0.1531177]
[1731839837603,0.05492022,91217.0,91216.0,0.35024325]
[1731839837806,0.05492022,91217.0,91216.0,0.1531177]
[1731839838210,0.05492022,91217.0,91216.0,0.0159057]
[1731839838410,0.21920846,91217.0,91216.0,0.0159057]
[1731839838610,0.05492022,91217.0,91216.0,0.0159057]
[1731839839604,0.1082486,91217.0,91216.0,0.0159057]
[1731839840406,0.10824834,91217.0,91216.0,0.0159057]
[1731839840606,0.05492022,91217.0,91216.0,0.0159057]
[1731839841209,0.21935013,91217.0,91216.0,0.0159057]
[1731839841510,0.21935013,91217.0,91216.0,0.0707177]
[1731839841809,0.21995603,91217.0,91216.0,0.0707177]
[1731839842707,0.21995603,91217.0,91216.0,0.05494665]
[1731839843013,0.21995603,91217.0,91216.0,0.07071834]
[1731839845307,0.16514503,91217.0,91216.0,0.07071834]
[1731839846019,0.11181783,91217.0,91216.0,0.07197461]
[1731839846317,0.11181783,91217.0,91216.0,0.0719744]
[1731839846909,0.11181783,91217.0,91216.0,0.07071802]
[1731839847404,0.16514503,91217.0,91216.0,0.07071805]
[1731839848013,0.16514503,91217.0,91216.0,0.06386092]
[1731839848614,0.00010922,91217.0,91216.0,0.06386092]
[1731839849013,0.00010922,91217.0,91216.0,0.07071795]
[1731839849838,0.00010922,91217.0,91216.0,0.07071781]
[1731839850420,0.00010922,91217.0,91216.0,0.07071782]
[1731839851011,0.00010922,91217.0,91216.0,0.06386078]
[1731839853431,0.05492022,91217.0,91216.0,0.07071778]
[1731839853619,0.05492022,91217.0,91216.0,0.06386079]
[1731839854319,0.05492022,91217.0,91216.0,0.0638608]
[1731839856819,0.22023965,91217.0,91216.0,0.0638608]
[1731839857421,0.22023965,91217.0,91216.0,0.11845604]
[1731839861931,0.22023965,91217.0,91216.0,0.06364404]
[1731839863229,0.22023965,91217.0,91216.0,0.00562029]
[1731839863431,0.22023965,91217.0,91216.0,0.00904881]
[1731839863731,0.10824533,91217.0,91216.0,0.00013465]
[1731839863918,0.10824533,91217.0,91216.0,0.00356344]
[1731839864116,0.10824533,91217.0,91216.0,0.00904946]
[1731839864522,0.10824533,91217.0,91216.0,0.00904947]
[1731839865427,0.05492022,91217.0,91216.0,0.00904947]
[1731839865636,0.10824922,91217.0,91216.0,0.00904947]
[1731839866730,0.10824922,91217.0,91216.0,0.00904927]
[1731839867124,0.10824922,91217.0,91216.0,0.20640291]
[1731839867637,0.10824922,91217.0,91216.0,0.00904927]
[1731839868333,0.10824922,91217.0,91216.0,0.20640291]
[1731839869229,0.10824922,91217.0,91216.0,0.00904927]
[1731839869431,0.10824922,91217.0,91216.0,0.20640291]
[1731839869835,0.10824922,91217.0,91216.0,0.00904927]
[1731839872824,0.10824898,91217.0,91216.0,0.00904927]
[1731839878338,0.054815,91211.0,91210.0,0.19737039]
[1731839878540,0.054815,91211.0,91207.0,0.19737039]
[1731839878541,0.468724,91211.0,91207.0,0.19737039]
[1731839878745,0.468724,91211.0,91197.0,0.05459524]
[1731839878746,0.054822,91199.0,91198.0,0.0051]
[1731839878939,0.054823,91198.0,91197.0,0.10941824]
[1731839879240,0.22194247,91198.0,91197.0,0.05459524]
[1731839879746,0.22194247,91198.0,91194.0,1.50065717]
[1731839879747,0.054824,91195.0,91194.0,1.50065717]
[1731839879950,0.054824,91195.0,91194.0,1.50009717]
[1731839879951,0.22194347,91195.0,91194.0,1.50009717]
[1731839880452,0.22175155,91195.0,91194.0,1.50009717]
[1731839880739,0.22175155,91195.0,91194.0,9.717e-05]
[1731839880934,0.58255155,91195.0,91194.0,9.717e-05]
[1731839881131,0.58255155,91195.0,91194.0,0.04727]
[1731839881340,0.58255155,91195.0,91194.0,9.717e-05]
[1731839882542,0.58255155,91195.0,91194.0,1.50009717]
[1731839882937,0.46896494,91195.0,91194.0,1.50009717]
[1731839885136,0.66562379,91195.0,91194.0,1.50009717]
[1731839885445,0.46896494,91195.0,91194.0,1.50009717]
[1731839886244,0.66559524,91195.0,91194.0,1.50009717]
[1731839886846,0.415624,91195.0,91194.0,1.50009717]
[1731839888640,0.415624,91195.0,91194.0,1.55492217]
[1731839889053,0.415624,91195.0,91194.0,1.50009717]
[1731839890146,0.415624,91195.0,91194.0,9.717e-05]
[1731839891243,0.744584,91195.0,91194.0,9.717e-05]
[1731839891449,0.775884,91195.0,91194.0,9.717e-05]
[1731839891650,0.807984,91195.0,91194.0,9.717e-05]
[1731839892042,1.168784,91195.0,91194.0,9.717e-05]
[1731839893039,1.33264173,91195.0,91194.0,9.717e-05]
[1731839893257,1.168784,91195.0,91194.0,9.717e-05]
[1731839893642,0.054829,91188.0,91175.0,0.05459524]
[1731839893841,0.054833,91181.0,91180.0,0.0051]
[1731839894055,0.054836,91177.0,91175.0,0.05459524]
[1731839894240,0.054836,91177.0,91176.0,0.00343014]
[1731839894653,0.21859252,91177.0,91176.0,0.00343014]
[1731839894846,0.10818758,91177.0,91176.0,0.00343014]
[1731839895356,0.10818758,91177.0,91175.0,0.00013957]
[1731839895560,0.05335158,91176.0,91175.0,0.00013957]
[1731839898053,0.05335413,91176.0,91175.0,0.00013957]
[1731839898241,0.10945596,91176.0,91175.0,0.00013957]
[1731839898446,0.05486072,91176.0,91175.0,0.00013957]
[1731839901859,0.00150658,91176.0,91175.0,0.00013957]
[1731839904250,0.00150658,91176.0,91175.0,0.05473481]
[1731839905944,0.00150658,91176.0,91175.0,0.00013957]
[1731839906146,0.05610182,91176.0,91175.0,0.00013957]
[1731839906440,0.00150658,91176.0,91175.0,0.00013957]
[1731839908747,0.00150658,91176.0,91175.0,0.04867065]
[1731839909555,0.00150658,91176.0,91175.0,0.00013957]
[1731839911555,0.13233779,91176.0,91175.0,0.00013957]
[1731839913156,0.00150658,91176.0,91175.0,0.00013957]
[1731839913850,0.06340658,91176.0,91175.0,0.00013957]
[1731839914250,0.2269456,91176.0,91175.0,0.00013957]
[1731839914459,0.06340658,91176.0,91175.0,0.00013957]
[1731839914661,0.44580298,91176.0,91175.0,0.00013957]
[1731839915457,0.45735149,91176.0,91175.0,1e-08]
[1731839916165,0.47590561,91176.0,91175.0,1e-08]
[1731839916752,0.47590561,91176.0,91165.0,0.0051]
[1731839916753,0.59339036,91176.0,91165.0,0.0051]
[1731839916954,0.054845,91161.0,91160.0,1.50056]
[1731839917261,0.10970954,91161.0,91160.0,1.5]
[1731839917467,0.25290886,91161.0,91160.0,1.5]
[1731839917669,0.10970954,91161.0,91160.0,1.5]
[1731839917858,0.10970954,91161.0,91160.0,1.50010429]
[1731839920268,0.25142182,91161.0,91160.0,1.50010429]
[1731839920458,0.05486454,91161.0,91160.0,1.50010429]
[1731839920964,0.25142182,91161.0,91160.0,1.50010429]
[1731839921163,0.05486454,91161.0,91160.0,1.50010429]
[1731839921756,0.25162656,91161.0,91160.0,1.50010429]
[1731839922160,0.05486454,91161.0,91160.0,1.50010429]
[1731839923767,0.00150658,91161.0,91160.0,1.50010429]
[1731839925763,0.00150658,91161.0,91160.0,1.76326481]
[1731839925962,0.13119279,91165.0,91160.0,1.76326481]
[1731839926255,0.13119279,91168.0,91164.0,0.41539524]
[1731839926456,0.13119279,91169.0,91167.0,0.05459524]
[1731839926659,0.13119279,91172.0,91170.0,0.054839]
[1731839926972,0.36164,91181.0,91172.0,0.054838]
[1731839926973,0.13119279,91173.0,91172.0,0.054838]
[1731839927163,0.13119279,91173.0,91172.0,0.415638]
[1731839927470,0.16563665,91180.0,91172.0,0.415638]
[1731839927471,0.13119279,91174.0,91172.0,0.415638]
[1731839927672,0.13119279,91174.0,91173.0,0.05459524]
[1731839929273,0.18602979,91175.0,91174.0,0.054837]
[1731839929573,0.054837,91175.0,91174.0,0.25211641]
[1731839929774,0.054837,91175.0,91174.0,0.19727941]
[1731839929962,0.00164567,91180.0,91172.0,0.55807941]
[1731839929963,0.054838,91173.0,91172.0,0.55807941]
[1731839930278,0.05459524,91178.0,91169.0,0.19728559]
[1731839930279,0.16399098,91177.0,91169.0,0.19728559]
[1731839930572,0.05459524,91178.0,91168.0,0.19728559]
[1731839930573,0.05484,91169.0,91168.0,0.19728559]
[1731839931971,0.054841,91168.0,91166.0,1.50056]
[1731839932169,0.054841,91168.0,91167.0,0.05459524]
[1731839932373,0.10819437,91168.0,91167.0,0.05459524]
[1731839934580,0.10794861,91168.0,91166.0,1.5]
[1731839934768,0.054845,91161.0,91160.0,0.00520429]
[1731839934968,0.054845,91161.0,91160.0,0.00010429]
[1731839934969,0.28026738,91161.0,91160.0,0.00010429]
[1731839937274,0.28261443,91161.0,91160.0,0.00010429]
[1731839937982,0.29389684,91161.0,91160.0,0.00010429]
[1731839938673,0.35084306,91161.0,91160.0,3.005e-05]
[1731839938982,0.28454203,91161.0,91160.0,3.005e-05]
[1731839939381,0.64534203,91161.0,91160.0,3.005e-05]
[1731839939981,0.48152265,91161.0,91160.0,3.005e-05]
[1731839941773,0.47024024,91161.0,91160.0,3.005e-05]
[1731839941975,0.48145896,91161.0,91160.0,3.005e-05]
[1731839942580,0.47024024,91161.0,91160.0,3.005e-05]
[1731839946082,0.60122178,91161.0,91160.0,3.005e-05]
[1731839947090,0.63836412,91161.0,91160.0,3.005e-05]
[1731839947283,0.52360454,91161.0,91160.0,3.005e-05]
[1731839948682,0.63822079,91161.0,91160.0,3.005e-05]
[1731839950787,0.52360454,91161.0,91160.0,3.005e-05]
[1731839953499,0.16280454,91161.0,91160.0,3.005e-05]
[1731839953698,0.52360454,91161.0,91160.0,3.005e-05]
[1731839954096,0.47024024,91161.0,91160.0,3.005e-05]
[1731839955898,0.054845,91161.0,91160.0,3.005e-05]
[1731839956400,0.054845,91161.0,91160.0,1.50003005]
[1731839957192,0.13093033,91165.0,91160.0,1.50003005]
[1731839957400,0.13103935,91167.0,91165.0,0.054842]
[1731839957596,0.13103935,91167.0,91166.0,0.0309]
[1731839958200,0.00010902,91167.0,91166.0,0.0309]
[1731839958806,0.13110804,91167.0,91166.0,0.0309]
[1731839959198,0.00010902,91167.0,91166.0,0.0309]
[1731839959794,0.05495002,91167.0,91166.0,0.0309]
[1731839961108,0.00010902,91167.0,91166.0,0.0309]
[1731839961310,0.00010902,91167.0,91166.0,0.3917]
[1731839961810,0.00010902,91167.0,91166.0,0.4245]
[1731839964103,0.13118487,91167.0,91166.0,0.4245]
[1731839964298,0.00010902,91167.0,91166.0,0.4245]
[1731839970208,0.24999857,91167.0,91166.0,0.4245]
[1731839970407,0.19664593,91167.0,91166.0,0.4245]
[1731839970607,0.05346166,91167.0,91166.0,0.4245]
[1731839971011,0.05346166,91167.0,91166.0,0.80817524]
[1731839971214,0.05647954,91180.0,91166.0,0.91786465]
[1731839971215,0.19653691,91172.0,91166.0,0.91786465]
[1731839971523,0.16377126,91172.0,91171.0,0.3608]
[1731839971706,0.16377126,91172.0,91171.0,0.44694967]
[1731839971903,0.16377126,91177.0,91174.0,0.054837]
[1731839972103,0.16377126,91177.0,91176.0,0.47023124]
[1731839972311,0.00164554,91180.0,91176.0,0.47023124]
[1731839972312,0.16377126,91178.0,91176.0,0.47023124]
[1731839972517,0.16377126,91178.0,91177.0,0.00342967]
[1731839972719,0.16377126,91178.0,91177.0,1.50342967]
[1731839973213,0.16377126,91179.0,91177.0,1.50342967]
[1731839973420,0.16377126,91179.0,91178.0,0.05826467]
[1731839974007,0.16377126,91179.0,91178.0,1.55826467]
[1731839974317,0.1654168,91180.0,91178.0,1.55826467]
[1731839974511,0.1654168,91180.0,91179.0,0.00342967]
[1731839975115,0.1654168,91180.0,91178.0,1.554835]
[1731839975313,0.00164554,91180.0,91179.0,0.00342967]
[1731839975815,0.00164554,91180.0,91178.0,1.554835]
[1731839976715,0.00013054,91186.0,91185.0,0.05483]
[1731839976920,0.00013054,91186.0,91185.0,0.55294524]
[1731839978317,0.00013054,91186.0,91185.0,0.55637471]
[1731839978714,0.00013054,91186.0,91185.0,0.55294524]
[1731839979618,0.00013054,91186.0,91185.0,0.47022524]
[1731839979818,0.00013054,91186.0,91185.0,0.55302524]
[1731839980625,0.00013054,91186.0,91185.0,0.55645471]
[1731839982215,0.00013054,91186.0,91185.0,0.55302524]
[1731839982421,0.00013054,91186.0,91185.0,0.55645479]
[1731839982823,0.00013054,91186.0,91185.0,0.56194204]
[1731839984826,0.00013054,91186.0,91185.0,0.20114204]
[1731839986718,0.00013054,91186.0,91185.0,0.20800118]
[1731839987218,0.05347239,91186.0,91185.0,0.20800118]
[1731839987913,0.05347239,91186.0,91185.0,0.20114204]
[1731839989324,0.2500093,91186.0,91185.0,0.20114204]
[1731839990320,0.05347239,91186.0,91185.0,0.06351204]
[1731839990520,0.19657505,91186.0,91185.0,0.0089168]
[1731839990729,0.2499169,91186.0,91185.0,0.00342955]
[1731839990929,0.05347239,91186.0,91179.0,0.054834]
[1731839991127,0.054832,91182.0,91180.0,0.0034298]
[1731839991430,0.054832,91182.0,91181.0,0.0034298]
[1731839992332,0.13108831,91186.0,91182.0,0.054832]
[1731839992534,0.05496054,91186.0,91183.0,0.00342991]
[1731839992723,0.05496054,91186.0,91182.0,0.054832]
[1731839992919,0.05496054,91186.0,91183.0,0.00342983]
[1731839993120,0.05496054,91186.0,91184.0,0.00342983]
[1731839993324,0.05496054,91186.0,91185.0,0.00342983]
[1731839993520,0.18591831,91186.0,91185.0,0.00342983]
[1731839993724,0.18591831,91186.0,91185.0,0.05802507]
[1731839995234,0.05496054,91186.0,91185.0,0.05802507]
[1731839995837,0.05496054,91186.0,91185.0,0.05459524]
[1731839996031,0.05496054,91186.0,91185.0,0.05802508]
[1731839997335,0.05496054,91186.0,91185.0,0.00342984]
[1731839997737,0.05496054,91186.0,91185.0,0.01577743]
[1731839998531,0.05496054,91186.0,91185.0,0.01577751]
[1731839999141,0.21865775,91186.0,91185.0,0.01577751]
[1731839999339,0.10830722,91186.0,91185.0,0.01577751]
[1731840001235,0.10830722,91186.0,91185.0,0.0706074]
[1731840002237,0.16290246,91186.0,91185.0,0.0157774]
[1731840002442,0.16290246,91186.0,91167.0,0.32895065]
[1731840002443,0.24570246,91186.0,91175.0,0.19728559]
[1731840002644,0.054835,91177.0,91176.0,1.51029031]
[1731840003035,0.10818721,91177.0,91176.0,1.51029031]
[1731840003240,0.10818721,91177.0,91176.0,0.01029031]
[1731840003441,0.21879345,91177.0,91176.0,0.01029031]
[1731840004844,0.054835,91177.0,91176.0,0.01029031]
[1731840005031,0.054836,91176.0,91173.0,1.50056]
[1731840005234,0.054836,91176.0,91174.0,0.00686052]
[1731840005534,0.054836,91176.0,91175.0,0.00686052]
[1731840005935,0.054836,91176.0,91173.0,1.50064]
[1731840006137,0.16514701,91175.0,91173.0,1.5]
[1731840006344,0.05335227,91174.0,91173.0,1.5]
[1731840006940,0.05335227,91174.0,91173.0,1.50686018]
[1731840007245,0.23012041,91185.0,91174.0,0.054837]
[1731840007438,0.16447844,91184.0,91173.0,1.5006]
[1731840007630,0.054833,91181.0,91173.0,1.5]
[1731840007835,0.054837,91175.0,91173.0,1.5]
[1731840008040,0.05335035,91174.0,91173.0,1.5]
[1731840010243,0.05335035,91174.0,91173.0,1.554838]
[1731840010433,0.05335035,91174.0,91173.0,1.56169847]
[1731840010637,0.05335035,91174.0,91173.0,1.554838]
[1731840010837,0.05335035,91174.0,91173.0,1.5616983]
[1731840011038,0.10818635,91176.0,91173.0,1.5616983]
[1731840011242,0.21897505,91175.0,91173.0,1.554838]
[1731840011548,0.10818735,91174.0,91173.0,1.554838]
[1731840012037,0.10818735,91174.0,91173.0,1.56169838]
[1731840012551,0.10818789,91174.0,91173.0,1.56718662]
[1731840013242,0.054837,91174.0,91173.0,1.56844062]
[1731840013439,0.2191217,91174.0,91173.0,1.56844062]
[1731840013746,0.10818789,91174.0,91173.0,1.56844062]
[1731840014047,0.054837,91174.0,91173.0,1.56844062]
[1731840014249,0.18594811,91174.0,91173.0,1.554838]
[1731840014448,0.18594811,91174.0,91173.0,1.56844086]
[1731840014650,0.18594811,91174.0,91173.0,1.57187105]
[1731840015141,0.054837,91174.0,91173.0,1.57187105]
[1731840015841,0.054837,91174.0,91173.0,1.57061697]
[1731840016056,0.18595629,91174.0,91173.0,1.57061697]
[1731840016351,0.18595629,91174.0,91173.0,1.57061664]
[1731840016352,0.054837,91174.0,91173.0,1.57061664]
[1731840016546,0.054837,91174.0,91173.0,1.51577864]
[1731840016848,0.054837,91174.0,91173.0,1.51703278]
[1731840017540,0.054837,91174.0,91173.0,1.51703359]
[1731840017748,0.16388793,91179.0,91173.0,1.51577938]
[1731840017948,0.13113986,91174.0,91173.0,1.554838]
[1731840018148,0.13113986,91174.0,91173.0,1.57061685]
[1731840018444,0.13115063,91174.0,91173.0,1.57061685]
[1731840019448,0.054837,91174.0,91173.0,1.51577885]
[1731840019648,0.63412017,91174.0,91173.0,0.01577885]
[1731840019841,0.5235863,91174.0,91173.0,0.01577885]
[1731840020150,1.04929182,91174.0,91173.0,0.01577885]
[1731840020351,1.04935878,91174.0,91173.0,0.01577885]
[1731840020540,1.04935878,91174.0,91160.0,0.19731564]
[1731840020541,0.9349463,91174.0,91165.0,0.00125521]
[1731840020743,0.9349463,91174.0,91164.0,0.00125449]
[1731840020744,0.3608,91166.0,91164.0,0.00125449]
[1731840020941,0.1627913,91165.0,91164.0,0.00125449]
[1731840021138,0.21724214,91165.0,91163.0,0.00125449]
[1731840021344,0.2174899,91164.0,91163.0,0.00125449]
[1731840021649,0.054844,91163.0,91162.0,0.00125449]
[1731840021853,0.2174909,91163.0,91162.0,0.00125449]
[1731840022453,0.10819806,91163.0,91162.0,0.00125449]
[1731840022948,0.05335406,91163.0,91161.0,0.00125449]
[1731840023152,0.41539524,91165.0,91161.0,0.00125449]
[1731840023153,0.10819806,91162.0,91161.0,0.00125449]
[1731840023547,0.05335406,91162.0,91160.0,0.00128454]
[1731840023756,0.30481933,91161.0,91160.0,3.005e-05]
[1731840024344,0.10819906,91161.0,91160.0,3.005e-05]
[1731840024754,0.46899906,91161.0,91160.0,3.005e-05]
[1731840025151,0.66561933,91161.0,91160.0,3.005e-05]
[1731840025455,0.46899906,91161.0,91160.0,3.005e-05]
[1731840025953,0.46899906,91161.0,91160.0,0.05462529]
[1731840026746,0.46899906,91161.0,91160.0,3.005e-05]
[1731840026947,0.10819906,91161.0,91160.0,3.005e-05]
[1731840027354,0.19662027,91164.0,91160.0,3.005e-05]
[1731840027355,0.054842,91166.0,91160.0,0.05462529]
[1731840027555,0.16379151,91163.0,91162.0,0.054844]
[1731840027744,0.16379151,91164.0,91163.0,0.054844]
[1731840028154,0.16379151,91165.0,91164.0,0.054843]
[1731840028354,0.16379151,91165.0,91162.0,0.00125343]
[1731840028355,0.05335519,91165.0,91162.0,0.00125343]
[1731840028557,0.163803,91164.0,91163.0,0.054844]
[1731840028854,0.163803,91164.0,91163.0,0.06170487]
[1731840029257,0.054839,91171.0,91168.0,0.05484]
[1731840029452,0.054839,91171.0,91169.0,0.11629611]
[1731840029649,0.054839,91171.0,91170.0,0.06169987]
[1731840030367,0.18588055,91171.0,91170.0,0.06169987]
[1731840030755,0.054839,91171.0,91170.0,0.06718856]
[1731840030950,0.054839,91171.0,91170.0,0.054839]
[1731840031159,0.054839,91171.0,91170.0,0.06718855]
[1731840031457,0.36164,91172.0,91171.0,0.054839]
[1731840031754,0.3608,91172.0,91171.0,0.06718855]
[1731840032159,0.054837,91174.0,91171.0,0.06718855]
[1731840032160,0.13107608,91173.0,91171.0,0.054839]
[1731840032354,0.054837,91174.0,91172.0,0.01234915]
[1731840032556,0.054837,91174.0,91173.0,0.01234915]
[1731840032759,0.054837,91174.0,91173.0,0.01577946]
[1731840034152,0.054837,91174.0,91173.0,0.01577944]
[1731840035054,0.054837,91174.0,91173.0,0.00891881]
[1731840035464,0.57944,91174.0,91173.0,0.00891881]
[1731840035657,0.415637,91174.0,91173.0,0.00891881]
[1731840035856,0.46899523,91174.0,91173.0,0.00891881]
[1731840036056,0.415637,91174.0,91173.0,0.01578006]
[1731840036264,0.81050949,91174.0,91173.0,0.00987566]
[1731840036959,0.58038908,91174.0,91173.0,0.00987566]
[1731840037160,0.81050949,91174.0,91173.0,0.00987566]
[1731840037359,0.58038908,91174.0,91173.0,0.00987566]
[1731840037558,0.80979864,91174.0,91173.0,0.00686133]
[1731840037755,0.96402432,91174.0,91173.0,0.00686133]
[1731840037952,1.0383699,91174.0,91163.0,0.00125412]
[1731840038156,0.415643,91164.0,91162.0,0.00125412]
[1731840038369,0.054844,91162.0,91160.0,3.005e-05]
[1731840038669,0.19715208,91161.0,91160.0,3.005e-05]
[1731840040155,0.25199708,91161.0,91160.0,3.005e-05]
[1731840041462,0.25234103,91161.0,91160.0,3.005e-05]
[1731840044160,0.087245,91161.0,91160.0,3.005e-05]
[1731840045768,0.14184024,91161.0,91160.0,3.005e-05]
[1731840045967,0.14184024,91161.0,91160.0,0.00689185]
[1731840046164,0.14184024,91161.0,91160.0,0.01238129]
[1731840046870,0.087245,91161.0,91160.0,0.01238129]
[1731840048264,0.087245,91161.0,91160.0,0.01581217]
[1731840050777,0.25101699,91161.0,91160.0,0.01581217]
[1731840050975,0.1406106,91161.0,91160.0,0.01581308]
[1731840051182,0.19520584,91161.0,91160.0,0.00895089]
[1731840051472,0.19520783,91161.0,91160.0,0.00346114]
[1731840051672,0.39173422,91161.0,91160.0,0.00346114]
[1731840052265,0.19520783,91161.0,91160.0,0.00346114]
[1731840052974,0.24980307,91161.0,91160.0,0.00346114]
[1731840053477,0.19643548,91161.0,91160.0,0.00346114]
[1731840054367,0.24980659,91161.0,91160.0,0.00346114]
[1731840055873,0.14184024,91161.0,91160.0,0.00346114]
[1731840056379,0.14184024,91161.0,91160.0,3.005e-05]
[1731840056578,0.14184024,91161.0,91160.0,0.00346148]
[1731840056967,0.14184024,91161.0,91160.0,0.00346144]
[1731840057675,0.14184024,91161.0,91160.0,3.005e-05]
[1731840060769,0.30804926,91161.0,91160.0,3.005e-05]
[1731840061166,0.30804926,91161.0,91160.0,0.00346149]
[1731840061966,0.14184024,91161.0,91160.0,0.00346149]
[1731840063182,0.14184024,91161.0,91160.0,0.00346139]
[1731840063486,0.14184024,91161.0,91160.0,0.00346142]
[1731840065893,0.30948114,91161.0,91160.0,0.00346142]
[1731840066183,0.30948114,91161.0,91160.0,0.0089516]
[1731840066574,0.67028114,91161.0,91160.0,0.0089516]
[1731840066773,0.67038137,91161.0,91160.0,0.0089516]
[1731840066979,0.67038137,91161.0,91160.0,0.00895164]
[1731840067182,0.5560103,91161.0,91160.0,0.00895164]
[1731840067576,0.75273178,91161.0,91160.0,0.00895164]
[1731840069195,0.5560103,91161.0,91160.0,0.00895164]
[1731840070179,0.5236103,91161.0,91160.0,0.00895164]
[1731840070375,0.5236103,91161.0,91160.0,0.00895117]
[1731840071788,0.5236075,91161.0,91160.0,0.00895117]
[1731840073291,0.5236075,91161.0,91160.0,0.00895101]
[1731840073595,0.63936324,91161.0,91160.0,0.00895101]
[1731840073982,0.63936324,91161.0,91160.0,3.005e-05]
[1731840074294,0.77349776,91161.0,91160.0,0.00891101]
[1731840075582,0.77349776,91161.0,91160.0,0.01577329]
[1731840076488,0.47024024,91161.0,91160.0,0.01577329]
[1731840076689,0.77260574,91161.0,91160.0,0.01577329]
[1731840077291,0.05485,91153.0,91148.0,0.00012479]
[1731840077500,0.28435906,91153.0,91148.0,0.00012479]
[1731840077690,0.16858785,91152.0,91151.0,0.00124893]
[1731840077884,0.22318309,91152.0,91151.0,0.01154235]
[1731840078384,0.16858785,91152.0,91151.0,0.06514442]
[1731840078591,0.05336628,91152.0,91151.0,0.06514442]
[1731840078885,0.05336451,91160.0,91159.0,0.054846]
[1731840079086,0.05336451,91160.0,91159.0,0.06513942]
[1731840079087,0.16772014,91160.0,91159.0,0.06513942]
[1731840079492,0.16772014,91160.0,91159.0,0.0651385]
[1731840080186,0.16772014,91160.0,91159.0,1.5651385]
[1731840080502,0.05336451,91160.0,91159.0,1.5651385]
[1731840080896,0.05336451,91160.0,91159.0,1.56513796]
[1731840081796,0.05336451,91160.0,91159.0,1.61350121]
[1731840082191,0.3608,91161.0,91159.0,1.61350121]
[1731840082392,0.3608,91161.0,91160.0,0.01029196]
[1731840084290,0.3608,91161.0,91160.0,0.00548906]
[1731840084498,0.3608,91161.0,91160.0,0.01578105]
[1731840086496,0.3608,91161.0,91160.0,0.00891972]
[1731840086698,0.3608,91161.0,91160.0,0.01578138]
[1731840086900,0.3608,91161.0,91160.0,0.00891972]
[1731840087697,0.054847,91158.0,91150.0,0.5579986]
[1731840087895,0.13100952,91156.0,91151.0,0.01578232]
[1731840088096,0.13100952,91156.0,91152.0,0.01578232]
[1731840088298,0.13100952,91156.0,91153.0,0.01578232]
[1731840088498,0.13100952,91156.0,91150.0,0.5585586]
[1731840088499,0.13100952,91156.0,91154.0,0.01578232]
[1731840088698,0.13100952,91156.0,91155.0,0.01578232]
[1731840089198,0.19663564,91156.0,91155.0,0.01578232]
[1731840089503,0.05336323,91156.0,91155.0,0.01578232]
[1731840091099,0.05336323,91156.0,91155.0,0.01702965]
[1731840091304,0.05336366,91156.0,91155.0,0.01702965]
[1731840091505,0.05336366,91156.0,91155.0,0.01578242]
[1731840094608,0.05336366,91156.0,91155.0,0.00343098]
[1731840094810,0.05336366,91156.0,91155.0,0.0157825]
[1731840095298,0.05336366,91156.0,91155.0,0.01703006]
[1731840095514,0.05336366,91156.0,91155.0,0.00892054]
[1731840096401,0.054848,91157.0,91155.0,0.00892054]
[1731840096402,0.22363294,91157.0,91155.0,0.00892054]
[1731840096609,0.054848,91155.0,91148.0,0.00012479]
[1731840096909,0.054852,91150.0,91149.0,0.01578349]
[1731840097104,0.10821913,91150.0,91149.0,0.01578349]
[1731840097309,0.054852,91150.0,91149.0,0.01578349]
[1731840100902,0.10949631,91150.0,91149.0,0.01578349]
[1731840101403,0.10949631,91150.0,91149.0,0.01578352]
[1731840101904,0.10949631,91150.0,91148.0,0.00012479]
[1731840102210,0.10949631,91150.0,91149.0,0.01578352]
[1731840103707,0.24051448,91150.0,91149.0,0.01578352]
[1731840104402,0.10949631,91150.0,91149.0,0.01578352]
[1731840104812,0.10949631,91150.0,91148.0,0.00012479]
[1731840105109,0.15642404,91150.0,91148.0,0.00012479]
[1731840105305,0.15642404,91150.0,91149.0,0.01703122]
[1731840107315,0.15642404,91150.0,91149.0,0.0157832]
[1731840108313,0.15642304,91150.0,91149.0,0.0157832]
[1731840109608,0.10949531,91150.0,91149.0,0.0157832]
[1731840111417,0.16286173,91150.0,91149.0,0.0157832]
[1731840113307,0.35938511,91150.0,91149.0,0.0157832]
[1731840115317,0.16286173,91150.0,91149.0,0.0157832]
[1731840118409,0.10821742,91150.0,91149.0,0.0157832]
[1731840119323,0.054851,91150.0,91149.0,0.0157832]
[1731840120214,0.054851,91150.0,91149.0,0.27912317]
[1731840120409,0.054851,91150.0,91149.0,0.0157832]
[1731840121315,0.054852,91149.0,91148.0,0.26347636]
[1731840121513,0.18596371,91149.0,91148.0,0.27376981]
[1731840121714,0.18596371,91149.0,91148.0,0.27925965]
[1731840122220,0.054852,91149.0,91148.0,0.01590808]
[1731840125822,0.03014776,91149.0,91148.0,0.01590808]
[1731840126009,0.16132515,91149.0,91148.0,0.01590808]
[1731840126515,0.19884508,91149.0,91148.0,0.01590808]
[1731840127522,0.08351297,91149.0,91148.0,0.01590808]
[1731840127825,0.08351297,91149.0,91148.0,0.01590771]
[1731840128211,0.03014776,91149.0,91148.0,0.01590771]
[1731840128624,0.19929032,91149.0,91148.0,0.01590771]
[1731840129217,0.19927477,91149.0,91148.0,0.01590771]
[1731840129814,0.19927477,91149.0,91148.0,0.00904557]
[1731840131714,0.25965682,91149.0,91148.0,0.00904557]
[1731840131921,0.42878383,91149.0,91148.0,0.00904557]
[1731840132129,0.42878383,91149.0,91148.0,0.00012479]
[1731840132427,0.42878383,91149.0,91148.0,0.01796775]
[1731840133040,0.19927477,91149.0,91148.0,0.01796775]
[1731840134123,0.42878383,91149.0,91148.0,0.00904627]
[1731840134324,0.19403961,91149.0,91148.0,0.01796781]
[1731840134530,0.19403961,91149.0,91148.0,0.00904627]
[1731840134728,0.03014776,91149.0,91148.0,0.21213987]
[1731840135027,0.03014776,91149.0,91148.0,0.02345799]
[1731840135535,0.03014776,91149.0,91148.0,0.00904633]
[1731840135834,0.03014776,91149.0,91148.0,0.00012479]
[1731840136339,0.03014776,91149.0,91148.0,0.01590836]
[1731840139633,0.03014776,91149.0,91148.0,0.01590833]
[1731840142239,0.16383854,91149.0,91148.0,0.07200968]
[1731840142436,0.16383854,91151.0,91149.0,0.054852]
[1731840142631,0.16383854,91154.0,91153.0,0.05485]
[1731840142941,0.16383854,91157.0,91151.0,0.32577122]
[1731840143240,0.16383854,91158.0,91155.0,0.054848]
[1731840143428,0.16383854,91158.0,91157.0,0.00124902]
[1731840143635,0.054847,91158.0,91157.0,0.01578179]
[1731840144537,0.21848285,91159.0,91156.0,1.50056]
[1731840144836,0.054847,91157.0,91156.0,1.5]
[1731840145040,0.054847,91157.0,91156.0,1.51578179]
[1731840146039,0.21848285,91159.0,91156.0,1.51578179]
[1731840146237,0.05464431,91159.0,91157.0,0.01578179]